{"text_format":"1","workbook":"xlsx","n_sheets":2,"sheets":["Hoja1","Hoja4"],"not_rendered":{"charts":4,"images":0,"macros":1,"external_links":0,"defined_names":0,"comments":0,"pivot_tables":0},"unopened":[],"bounds":{"document_bytes":16777216,"sheet_cells":100000,"rows_first":2000,"rows_last":500,"rows_between":2000,"halvings":0,"cell_chars":16384,"cell_head_chars":4096},"cells_cut":0,"cells_raw":0,"read":"whole","date_system":"1900"}

{"sheet":"Hoja1","index":0,"n_rows":30,"n_cols":3,"rows_kept":30,"cut":false,"hidden":false,"merged":[[1,0,1,1]]}
[]
["Exportaciones Mineras Enero Diciembre Miles de US$ FOB"]
["RAZON SOCIAL",2011]
[]
["COMPAÑÍA MINERA ANTAMINA",3384338,{"$f":"B5/SUM($B$5:$B$27)","v":0.12652550537199289}]
["SOUTHERN PERÚ COPPER",2829021,0.10576464636008008]
["CONSORCIO MINERO",2418716,9.0425147917059454E-2]
["SOCIEDAS MINERA CERRO VERDE",2181883,8.157100420748753E-2]
["MINERA YANACOCHA",2049535,7.6623094871903288E-2]
["GLENCORE PERU",1744538,6.5220599151339417E-2]
["MINERABARRICK MISQUICHILCA",1487193,5.5599602022815157E-2]
["PROCESADORA SUDAMERICANA",1171696,4.3804557506473225E-2]
["SHOUGANG HIERRO PERÚ",1011816,3.7827347842759311E-2]
["UNIVERSAL METAL TRADING",901181,3.3691192031244495E-2]
["CÍA. DE MINAS BUENAVENTURA",825916,3.0877364877507765E-2]
["ARUNTANI, ARASI, ANABI",362020,1.3534334766435523E-2]
["SOCIEDAD MINERA RINCONADA",448068,1.6751290840636517E-2]
["GOLD FIELDS LA CIMA",427424,1.5979502522537256E-2]
["XSTRATA TINTAYA",420203,1.5709541107840744E-2]
["LOUIS DREYFUS PERÚ",351400,1.3137299698705715E-2]
["MINERA SUYAMARCA",347062,1.2975120967649979E-2]
["NUNERALES DEL SUR",328548,1.2282963976694266E-2]
["COMERCIALIZADORA TAMBO REAL",279697,1.0456640050736744E-2]
["CIA. MIN. AURIFERA SANTA ROSA",270041,1.0095644701019322E-2]
["VOTORANTIM METAIS",267836,1.0013209453905929E-2]
["MINERA AURÍFERA RETAMAS",256055,9.5727697050429477E-3]
["Empresas 25 +++",2984080,0.11156162004813247]
[]
[]
["http://mineriadelperu.com/2012/02/28/peru-ranking-top-de-exportacion-minera-2011/"]

{"sheet":"Hoja4","index":1,"n_rows":24,"n_cols":3,"rows_kept":24,"cut":false,"hidden":false,"merged":[]}
[]
[null,"COMPAÑÍA MINERA ANTAMINA",3384338]
[null,"SOUTHERN PERÚ COPPER",2829021]
[null,"CONSORCIO MINERO",2418716]
[null,"SOCIEDAS MINERA CERRO VERDE",2181883]
[null,"MINERA YANACOCHA",2049535]
[null,"GLENCORE PERU",1744538]
[null,"MINERABARRICK MISQUICHILCA",1487193]
[null,"PROCESADORA SUDAMERICANA",1171696]
[null,"SHOUGANG HIERRO PERÚ",1011816]
[null,"UNIVERSAL METAL TRADING",901181]
[null,"CÍA. DE MINAS BUENAVENTURA",825916]
[null,"ARUNTANI, ARASI, ANABI",362020]
[null,"SOCIEDAD MINERA RINCONADA",448068]
[null,"GOLD FIELDS LA CIMA",427424]
[null,"XSTRATA TINTAYA",420203]
[null,"LOUIS DREYFUS PERÚ",351400]
[null,"MINERA SUYAMARCA",347062]
[null,"NUNERALES DEL SUR",328548]
[null,"COMERCIALIZADORA TAMBO REAL",279697]
[null,"CIA. MIN. AURIFERA SANTA ROSA",270041]
[null,"VOTORANTIM METAIS",267836]
[null,"MINERA AURÍFERA RETAMAS",256055]
[null,"Empresas 25 +++",2984080]